fUST/lending_fUST_20251207
["ID","MTS","AMOUNT","RATE_DAILY","PERIOD"]
[396571247,1765055452030,-2494.95,8.493e-05,2]
[396571249,1765055452039,-1024.15,8.493e-05,2]
[396571251,1765055452048,-500.0,8.493e-05,2]
[396571253,1765055452058,-500.0,8.493e-05,2]
[396571255,1765055452069,-648.13319047,8.493e-05,2]
[396571257,1765055452078,-1269.83,8.493e-05,2]
[396571259,1765055452088,-16529.87,8.493e-05,2]
[396571261,1765055452098,-1862.02,8.493e-05,2]
[396571263,1765055452107,-2328.26,8.493e-05,2]
[396571265,1765055452116,-500.0,8.493e-05,2]
[396571267,1765055452126,-918.0,8.493e-05,2]
[396571269,1765055452136,-737.17,8.493e-05,2]
[396571271,1765055452146,-500.0,8.493e-05,2]
[396571273,1765055452155,-779.54,8.493e-05,2]
[396571275,1765055452167,-500.0,8.493e-05,2]
[396571277,1765055452177,-1988.47,8.493e-05,2]
[396571279,1765055452186,-1129.49,8.493e-05,2]
[396571281,1765055452195,-500.0,8.493e-05,2]
[396571283,1765055452206,-500.0,8.493e-05,2]
[396571285,1765055452217,-500.0,8.493e-05,2]
[396571287,1765055452226,-500.0,8.493e-05,2]
[396571289,1765055452236,-5637.04,8.493e-05,2]
[396571291,1765055452246,-1467.71,8.493e-05,2]
[396571293,1765055452256,-500.0,8.493e-05,2]
[396571295,1765055452265,-1905.71,8.493e-05,2]
[396571297,1765055452279,-580.49,8.493e-05,2]
[396571299,1765055452289,-500.0,8.493e-05,2]
[396571301,1765055452299,-1643.1,8.493e-05,2]
[396571303,1765055452308,-500.0,8.493e-05,2]
[396571305,1765055452319,-500.0,8.493e-05,2]
[396571307,1765055452329,-1642.05,8.493e-05,2]
[396571309,1765055452339,-4868.3,8.493e-05,2]
[396571311,1765055452348,-554.1,8.493e-05,2]
[396571313,1765055452359,-529.07,8.493e-05,2]
[396571315,1765055452368,-535.26,8.493e-05,2]
[396571317,1765055452378,-2324.98,8.493e-05,2]
[396571319,1765055452387,-2845.62,8.493e-05,2]
[396571321,1765055452396,-1820.35,8.493e-05,2]
[396571324,1765055452407,-500.0,8.493e-05,2]
[396571326,1765055452417,-930.65,8.493e-05,2]
[396571327,1765055452426,-500.0,8.493e-05,2]
[396571329,1765055452435,-1986.35,8.493e-05,2]
[396571332,1765055452444,-500.0,8.493e-05,2]
[396571334,1765055452456,-973.74,8.493e-05,2]
[396571335,1765055452466,-500.0,8.493e-05,2]
[396571338,1765055452477,-500.0,8.493e-05,2]
[396571340,1765055452486,-500.0,8.493e-05,2]
[396571342,1765055452495,-160.40109595,8.493e-05,2]
[396571344,1765055452504,-500.0,8.493e-05,2]
[396571346,1765055452513,-13792.0,8.493e-05,2]
[396571348,1765055452523,-572.55,8.493e-05,2]
[396571350,1765055452532,-944.7,8.493e-05,2]
[396571351,1765055452544,-913.76,8.493e-05,2]
[396571354,1765055452554,-500.0,8.493e-05,2]
[396571356,1765055452564,-500.0,8.493e-05,2]
[396571357,1765055452573,-4391.67,8.493e-05,2]
[396571359,1765055452583,-500.0,8.493e-05,2]
[396571361,1765055452592,-500.0,8.493e-05,2]
[396571364,1765055452602,-8223.72,8.493e-05,2]
[396571365,1765055452612,-1237.25,8.493e-05,2]
[396571368,1765055452622,-568.67,8.493e-05,2]
[396571369,1765055452631,-739.9,8.493e-05,2]
[396571371,1765055452641,-605.1592506,8.493e-05,2]
[396571373,1765055452651,-500.0,8.493e-05,2]
[396571376,1765055452660,-1297.41,8.493e-05,2]
[396571377,1765055452670,-588.13,8.493e-05,2]
[396571380,1765055452680,-500.0,8.493e-05,2]
[396571382,1765055452689,-3929.13,8.493e-05,2]
[396571384,1765055452699,-500.0,8.493e-05,2]
[396571386,1765055452708,-500.0,8.493e-05,2]
[396571388,1765055452717,-2132.75,8.493e-05,2]
[396571390,1765055452727,-500.0,8.493e-05,2]
[396571392,1765055452736,-500.0,8.493e-05,2]
[396571394,1765055452746,-500.0,8.493e-05,2]
[396571396,1765055452755,-1426.03,8.493e-05,2]
[396571398,1765055452766,-500.0,8.493e-05,2]
[396571400,1765055452775,-500.0,8.493e-05,2]
[396571402,1765055452785,-500.0,8.493e-05,2]
[396571404,1765055452795,-1307.88,8.493e-05,2]
[396571406,1765055452805,-500.0,8.493e-05,2]
[396571408,1765055452814,-818.51,8.493e-05,2]
[396571410,1765055452824,-500.0,8.493e-05,2]
[396571411,1765055452833,-916.53,8.493e-05,2]
[396571412,1765055452842,-500.0,8.493e-05,2]
[396571413,1765055452852,-500.0,8.493e-05,2]
[396571414,1765055452861,-781.49,8.493e-05,2]
[396571415,1765055452870,-1811.46,8.493e-05,2]
[396571416,1765055452879,-9712.73,8.493e-05,2]
[396571417,1765055452888,-500.0,8.493e-05,2]
[396571418,1765055452897,-500.0,8.493e-05,2]
[396571419,1765055452906,-500.0,8.493e-05,2]
[396571421,1765055452915,-3251.18,8.493e-05,2]
[396571423,1765055452924,-500.0,8.493e-05,2]
[396571425,1765055452934,-500.0,8.493e-05,2]
[396571427,1765055452943,-773.21,8.493e-05,2]
[396571429,1765055452952,-500.0,8.493e-05,2]
[396571431,1765055452962,-1381.51,8.493e-05,2]
[396571433,1765055452971,-500.0,8.493e-05,2]
[396571435,1765055452981,-576.69,8.493e-05,2]
[396571437,1765055452990,-500.0,8.493e-05,2]
[396571439,1765055452999,-417.97855825,8.493e-05,2]
[396571441,1765055453008,-3206.49,8.493e-05,2]
[396571443,1765055453018,-181.26646682,8.493e-05,2]
[396571445,1765055453027,-882.67,8.493e-05,2]
[396571447,1765055453036,-1425.62,8.493e-05,2]
[396571449,1765055453046,-612.61,8.493e-05,2]
[396571451,1765055453056,-500.0,8.493e-05,2]
[396571453,1765055453065,-500.0,8.493e-05,2]
[396571456,1765055453076,-516.26,8.493e-05,2]
[396571458,1765055453087,-500.0,8.493e-05,2]
[396571460,1765055453097,-500.0,8.493e-05,2]
[396571462,1765055453107,-1999.26,8.493e-05,2]
[396571464,1765055453116,-2449.06,8.493e-05,2]
[396571466,1765055453126,-500.0,8.493e-05,2]
[396571468,1765055453136,-500.0,8.493e-05,2]
[396571479,1765055453232,-577.58,8.493e-05,2]
[396571481,1765055453242,-840.05,8.493e-05,2]
[396571483,1765055453251,-500.0,8.493e-05,2]
[396571485,1765055453261,-500.0,8.493e-05,2]
[396571487,1765055453273,-1548.31,8.493e-05,2]
[396571489,1765055453283,-817.77,8.493e-05,2]
[396571491,1765055453293,-592.6,8.493e-05,2]
[396571494,1765055453303,-1975.94,8.493e-05,2]
[396571496,1765055453312,-500.0,8.493e-05,2]
[396571497,1765055453323,-237.70346766,8.493e-05,2]
[396571500,1765055453332,-1955.06,8.493e-05,2]
[396571502,1765055453342,-500.0,8.493e-05,2]
[396571503,1765055453351,-500.0,8.493e-05,2]
[396571505,1765055453361,-500.0,8.493e-05,2]
[396571508,1765055453370,-1723.48,8.493e-05,2]
[396571510,1765055453380,-500.0,8.493e-05,2]
[396571512,1765055453389,-500.0,8.493e-05,2]
[396571513,1765055453398,-500.0,8.493e-05,2]
[396571516,1765055453409,-500.0,8.493e-05,2]
[396571518,1765055453418,-500.0,8.493e-05,2]
[396571519,1765055453427,-1499.26,8.493e-05,2]
[396571521,1765055453436,-182.06223799,8.493e-05,2]
[396571523,1765055453445,-1092.83,8.493e-05,2]
[396571525,1765055453454,-500.0,8.493e-05,2]
[396571527,1765055453463,-4777.56,8.493e-05,2]
[396571530,1765055453473,-500.0,8.493e-05,2]
[396571531,1765055453482,-500.0,8.493e-05,2]
[396571533,1765055453492,-500.0,8.493e-05,2]
[396571536,1765055453501,-1555.33,8.493e-05,2]
[396571538,1765055453511,-5441.22,8.493e-05,2]
[396571540,1765055453520,-500.0,8.493e-05,2]
[396571542,1765055453530,-500.0,8.493e-05,2]
[396571544,1765055453539,-5109.81,8.493e-05,2]
[396571545,1765055453548,-7856.3,8.493e-05,2]
[396571547,1765055453557,-500.0,8.493e-05,2]
[396571549,1765055453566,-1643.96,8.493e-05,2]
[396571551,1765055453576,-500.0,8.493e-05,2]
[396571554,1765055453585,-500.0,8.493e-05,2]
[396571555,1765055453596,-500.0,8.493e-05,2]
[396571557,1765055453605,-636.86,8.493e-05,2]
[396571559,1765055453614,-1411.91,8.493e-05,2]
[396571561,1765055453624,-3514.61,8.493e-05,2]
[396571563,1765055453634,-500.0,8.493e-05,2]
[396571565,1765055453643,-500.0,8.493e-05,2]
[396571567,1765055453652,-500.0,8.493e-05,2]
[396571570,1765055453661,-1188.22,8.493e-05,2]
[396571572,1765055453671,-793.19,8.493e-05,2]
[396571574,1765055453680,-1009.34,8.493e-05,2]
[396571576,1765055453689,-500.0,8.493e-05,2]
[396571578,1765055453698,-500.0,8.493e-05,2]
[396571579,1765055453707,-3649.29,8.493e-05,2]
[396571581,1765055453716,-500.0,8.493e-05,2]
[396571583,1765055453725,-915.41,8.493e-05,2]
[396571585,1765055453734,-1140.73,8.493e-05,2]
[396571587,1765055453743,-519.16,8.493e-05,2]
[396571589,1765055453754,-631.62,8.493e-05,2]
[396571591,1765055453763,-3657.33,8.493e-05,2]
[396571593,1765055453772,-500.0,8.493e-05,2]
[396571595,1765055453781,-500.0,8.493e-05,2]
[396571597,1765055453790,-500.0,8.493e-05,2]
[396571599,1765055453799,-500.0,8.493e-05,2]
[396571601,1765055453809,-4312.87,8.493e-05,2]
[396571603,1765055453818,-500.0,8.493e-05,2]
[396571605,1765055453827,-500.0,8.493e-05,2]
[396571608,1765055453837,-1926.16,8.493e-05,2]
[396571610,1765055453846,-500.0,8.493e-05,2]
[396571612,1765055453855,-702.46,8.493e-05,2]
[396571614,1765055453864,-500.0,8.493e-05,2]
[396571616,1765055453873,-569.98,8.493e-05,2]
[396571618,1765055453882,-26957.27,8.493e-05,2]
[396571620,1765055453892,-500.0,8.493e-05,2]
[396571622,1765055453901,-3360.73,8.493e-05,2]
[396571624,1765055453910,-500.0,8.493e-05,2]
[396571626,1765055453919,-500.0,8.493e-05,2]
[396571628,1765055453929,-9009.87,8.493e-05,2]
[396571630,1765055453938,-500.0,8.493e-05,2]
[396571632,1765055453947,-500.0,8.493e-05,2]
[396571634,1765055453957,-1298.1,8.493e-05,2]
[396571636,1765055453966,-500.0,8.493e-05,2]
[396571638,1765055453976,-500.0,8.493e-05,2]
[396571640,1765055453985,-1499.5,8.493e-05,2]
[396571642,1765055453995,-500.0,8.493e-05,2]
[396571644,1765055454004,-1522.79,8.493e-05,2]
[396571646,1765055454013,-6650.71,8.493e-05,2]
[396571648,1765055454023,-500.0,8.493e-05,2]
[396571650,1765055454033,-500.0,8.493e-05,2]
[396571652,1765055454042,-1457.1,8.493e-05,2]
[396571654,1765055454052,-500.0,8.493e-05,2]
[396571656,1765055454062,-500.0,8.493e-05,2]
[396571658,1765055454072,-740.17,8.493e-05,2]
[396571660,1765055454082,-2155.13,8.493e-05,2]
[396571662,1765055454091,-1874.71,8.493e-05,2]
[396571664,1765055454101,-1648.26,8.493e-05,2]
[396571666,1765055454111,-500.0,8.493e-05,2]
[396571668,1765055454120,-500.0,8.493e-05,2]
[396571670,1765055454130,-568.26,8.493e-05,2]
[396571672,1765055454139,-500.0,8.493e-05,2]
[396571674,1765055454148,-690.26,8.493e-05,2]
[396571676,1765055454157,-636.18,8.493e-05,2]
[396571678,1765055454167,-500.0,8.493e-05,2]
[396571680,1765055454176,-500.0,8.493e-05,2]
[396571682,1765055454186,-508.41,8.493e-05,2]
[396571684,1765055454195,-500.0,8.493e-05,2]
[396571686,1765055454205,-500.0,8.493e-05,2]
[396571688,1765055454214,-500.0,8.493e-05,2]
[396571690,1765055454223,-500.0,8.493e-05,2]
[396571692,1765055454233,-500.0,8.493e-05,2]
[396571694,1765055454243,-500.0,8.493e-05,2]
[396571697,1765055454253,-2484.37,8.493e-05,2]
[396571698,1765055454262,-6053.56,8.493e-05,2]
[396571700,1765055454276,-1042.84,8.493e-05,2]
[396571702,1765055454286,-657.07,8.493e-05,2]
[396571704,1765055454296,-2236.76,8.493e-05,2]
[396571706,1765055454307,-500.0,8.493e-05,2]
[396571708,1765055454317,-500.0,8.493e-05,2]
[396571710,1765055454327,-500.0,8.493e-05,2]
[396571712,1765055454336,-1359.69,8.493e-05,2]
[396571714,1765055454345,-500.0,8.493e-05,2]
[396571716,1765055454356,-500.0,8.493e-05,2]
[396571718,1765055454365,-1204.67,8.493e-05,2]
[396571720,1765055454375,-737.59,8.493e-05,2]
[396571722,1765055454384,-500.0,8.493e-05,2]
[396571724,1765055454394,-5032.43,8.493e-05,2]
[396571727,1765055454404,-512.76,8.493e-05,2]
[396571729,1765055454414,-1553.31,8.493e-05,2]
[396571731,1765055454424,-883.58,8.493e-05,2]
[396571733,1765055454434,-500.0,8.493e-05,2]
[396571735,1765055454443,-1394.01,8.493e-05,2]
[396571737,1765055454453,-500.0,8.493e-05,2]
[396571739,1765055454464,-172.37444961,8.524e-05,2]
[396571741,1765055454473,-500.0,8.529e-05,2]
[396571743,1765055454483,-535.0,8.529e-05,2]
[396571745,1765055454493,-689.49779844,8.553e-05,2]
[396571747,1765055454502,-1551.37004648,8.581e-05,2]
[396571749,1765055454512,-2455.73,8.583e-05,2]
[396571751,1765055454521,-2757.99119375,8.609e-05,2]
[396571753,1765055454530,-1984.64881965,8.631e-05,2]
[396571755,1765055454542,-4309.36124023,8.637e-05,2]
[396571757,1765055454551,-500.0,8.666e-05,2]
[396571759,1765055454560,-535.0,8.666e-05,2]
[396571761,1765055454569,-438.40601556,8.67e-05,2]
[396571763,1765055454579,-184.76967071,8.766e-05,2]
[396571765,1765055454588,-500.0,8.767e-05,2]
[396571767,1765055454597,-500.0,8.767e-05,2]
[396571769,1765055454606,-500.0,8.767e-05,2]
[396571771,1765055454616,-898.73,8.767e-05,2]
[396571773,1765055454625,-500.0,8.767e-05,2]
[396571774,1765055454636,-500.0,8.767e-05,2]
[396571776,1765055454645,-500.0,8.767e-05,2]
[396571778,1765055454654,-500.0,8.767e-05,2]
[396571780,1765055454663,-500.0,8.767e-05,2]
[396571782,1765055454672,-500.0,8.767e-05,2]
[396571784,1765055454682,-500.0,8.767e-05,2]
[396571786,1765055454691,-500.0,8.767e-05,2]
[396571788,1765055454701,-500.0,8.767e-05,2]
[396571790,1765055454714,-663.47,8.767e-05,2]
[396571792,1765055454724,-713.32,8.767e-05,2]
[396571794,1765055454733,-500.0,8.767e-05,2]
[396571796,1765055454742,-500.0,8.767e-05,2]
[396571798,1765055454752,-500.0,8.767e-05,2]
[396571800,1765055454762,-500.0,8.767e-05,2]
[396571802,1765055454771,-500.0,8.767e-05,2]
[396571804,1765055454780,-500.0,8.767e-05,2]
[396571806,1765055454789,-500.0,8.767e-05,2]
[396571808,1765055454798,-563.66,8.767e-05,2]
[396571810,1765055454808,-500.0,8.767e-05,2]
[396571812,1765055454817,-500.0,8.767e-05,2]
[396571814,1765055454827,-500.0,8.767e-05,2]
[396571816,1765055454837,-500.0,8.767e-05,2]
[396571818,1765055454846,-500.0,8.767e-05,2]
[396571820,1765055454856,-525.07,8.767e-05,2]
[396571822,1765055454866,-537.49,8.767e-05,2]
[396571824,1765055454875,-624.36,8.767e-05,2]
[396571826,1765055454884,-500.0,8.767e-05,2]
[396571828,1765055454893,-500.0,8.767e-05,2]
[396571830,1765055454903,-542.69254176,8.767e-05,2]
[396571832,1765055454912,-622.45,8.767e-05,2]
[396571834,1765055454922,-500.0,8.767e-05,2]
[396571836,1765055454932,-500.0,8.767e-05,2]
[396571838,1765055454941,-3682.836384,8.767e-05,2]
[396571840,1765055454950,-500.0,8.767e-05,2]
[396571842,1765055454959,-1589.85,8.767e-05,2]
[396571844,1765055454969,-500.0,8.767e-05,2]
[396571846,1765055454979,-500.0,8.767e-05,2]
[396571848,1765055454988,-1087.31,8.767e-05,2]
[396571850,1765055454997,-500.0,8.767e-05,2]
[396571852,1765055455006,-500.0,8.767e-05,2]
[396571855,1765055455017,-500.0,8.767e-05,2]
[396571856,1765055455027,-500.0,8.767e-05,2]
[396571859,1765055455038,-500.0,8.767e-05,2]
[396571861,1765055455047,-713.0,8.767e-05,2]
[396571862,1765055455057,-582.4491826,8.767e-05,2]
[396571865,1765055455066,-491.70322401,8.767e-05,2]
[396571867,1765055455077,-566.05,8.767e-05,2]
[396571869,1765055455087,-500.0,8.767e-05,2]
[396571871,1765055455096,-500.0,8.767e-05,2]
[396571872,1765055455105,-500.0,8.767e-05,2]
[396571875,1765055455115,-500.0,8.767e-05,2]
[396571877,1765055455124,-500.0,8.767e-05,2]
[396571879,1765055455134,-241.94457881,8.767e-05,2]
[396571880,1765055455143,-877.38,8.767e-05,2]
[396571883,1765055455153,-500.0,8.767e-05,2]
[396571885,1765055455162,-500.0,8.767e-05,2]
[396571887,1765055455171,-500.0,8.767e-05,2]
[396571889,1765055455181,-1132.83,8.767e-05,2]
[396571891,1765055455190,-500.0,8.767e-05,2]
[396571893,1765055455200,-500.0,8.767e-05,2]
[396571895,1765055455209,-500.0,8.767e-05,2]
[396571897,1765055455223,-500.0,8.767e-05,2]
[396571899,1765055455233,-500.0,8.767e-05,2]
[396571901,1765055455242,-500.0,8.767e-05,2]
[396571903,1765055455251,-500.0,8.767e-05,2]
[396571905,1765055455261,-500.0,8.767e-05,2]
[396571907,1765055455275,-500.0,8.767e-05,2]
[396571909,1765055455284,-681.31,8.767e-05,2]
[396571910,1765055455294,-500.2970614,8.767e-05,2]
[396571913,1765055455304,-500.0,8.767e-05,2]
[396571915,1765055455314,-500.0,8.767e-05,2]
[396571917,1765055455324,-500.0,8.767e-05,2]
[396571919,1765055455334,-500.0,8.767e-05,2]
[396571921,1765055455344,-551.66,8.767e-05,2]
[396571923,1765055455357,-539.12,8.767e-05,2]
[396571925,1765055455371,-534.25,8.767e-05,2]
[396571927,1765055455381,-500.0,8.767e-05,2]
[396571929,1765055455391,-500.0,8.767e-05,2]
[396571931,1765055455401,-500.0,8.767e-05,2]
[396571933,1765055455410,-582.41,8.767e-05,2]
[396571935,1765055455421,-674.04,8.767e-05,2]
[396571937,1765055455430,-500.0,8.767e-05,2]
[396571939,1765055455439,-500.0,8.767e-05,2]
[396571941,1765055455449,-500.0,8.767e-05,2]
[396571943,1765055455458,-500.0,8.767e-05,2]
[396571945,1765055455468,-500.0,8.767e-05,2]
[396571947,1765055455478,-500.0,8.767e-05,2]
[396571949,1765055455487,-562.86,8.767e-05,2]
[396571951,1765055455497,-500.0,8.767e-05,2]
[396571953,1765055455506,-500.0,8.767e-05,2]
[396571955,1765055455516,-500.0,8.767e-05,2]
[396571958,1765055455526,-500.0,8.767e-05,2]
[396571960,1765055455535,-500.0,8.767e-05,2]
[396571962,1765055455548,-500.0,8.767e-05,2]
[396571964,1765055455558,-1000.0,8.767e-05,2]
[396571966,1765055455568,-2198.97,8.767e-05,2]
[396571968,1765055455578,-500.0,8.767e-05,2]
[396571970,1765055455587,-500.0,8.767e-05,2]
[396571972,1765055455596,-500.0,8.767e-05,2]
[396571974,1765055455606,-500.0,8.767e-05,2]
[396571976,1765055455615,-500.0,8.767e-05,2]
[396571978,1765055455624,-500.0,8.767e-05,2]
[396571980,1765055455634,-523.79,8.767e-05,2]
[396571982,1765055455643,-658.81,8.767e-05,2]
[396571984,1765055455653,-500.0,8.767e-05,2]
[396571986,1765055455662,-500.0,8.767e-05,2]
[396571988,1765055455672,-500.0,8.767e-05,2]
[396571990,1765055455681,-2003.01,8.767e-05,2]
[396571992,1765055455690,-500.0,8.767e-05,2]
[396571994,1765055455700,-500.0,8.767e-05,2]
[396571996,1765055455710,-500.0,8.767e-05,2]
[396571998,1765055455719,-500.0,8.767e-05,2]
[396572000,1765055455728,-500.0,8.767e-05,2]
[396572002,1765055455737,-500.0,8.767e-05,2]
[396572004,1765055455747,-558.7,8.767e-05,2]
[396572006,1765055455756,-500.0,8.767e-05,2]
[396572008,1765055455768,-500.0,8.767e-05,2]
[396572010,1765055455777,-500.0,8.767e-05,2]
[396572012,1765055455787,-500.0,8.767e-05,2]
[396572014,1765055455796,-500.0,8.767e-05,2]
[396572016,1765055455806,-500.0,8.767e-05,2]
[396572018,1765055455815,-500.0,8.767e-05,2]
[396572020,1765055455825,-1095.02,8.767e-05,2]
[396572022,1765055455835,-1467.3,8.767e-05,2]
[396572025,1765055455844,-594.19,8.767e-05,2]
[396572027,1765055455854,-500.0,8.767e-05,2]
[396572029,1765055455863,-996.41,8.767e-05,2]
[396572031,1765055455873,-500.0,8.767e-05,2]
[396572033,1765055455882,-1040.86,8.767e-05,2]
[396572035,1765055455891,-500.0,8.767e-05,2]
[396572037,1765055455901,-500.0,8.767e-05,2]
[396572039,1765055455910,-500.0,8.767e-05,2]
[396572041,1765055455920,-500.0,8.767e-05,2]
[396572043,1765055455930,-1455.19,8.767e-05,2]
[396572045,1765055455940,-500.0,8.767e-05,2]
[396572047,1765055455949,-500.0,8.767e-05,2]
[396572049,1765055455959,-500.0,8.767e-05,2]
[396572051,1765055455968,-578.17,8.767e-05,2]
[396572053,1765055455979,-500.0,8.767e-05,2]
[396572055,1765055455988,-1090.1,8.767e-05,2]
[396572057,1765055455997,-1244.61,8.767e-05,2]
[396572059,1765055456006,-813.76,8.767e-05,2]
[396572061,1765055456016,-493.58,8.767e-05,2]
[396572063,1765055456026,-500.0,8.767e-05,2]
[396572065,1765055456036,-500.0,8.767e-05,2]
[396572067,1765055456045,-500.0,8.767e-05,2]
[396572069,1765055456055,-1158.75,8.767e-05,2]
[396572071,1765055456065,-942.22,8.767e-05,2]
[396572073,1765055456075,-760.34,8.767e-05,2]
[396572075,1765055456084,-1318.53,8.767e-05,2]
[396572077,1765055456094,-550.79,8.767e-05,2]
[396572079,1765055456104,-787.45,8.767e-05,2]
[396572082,1765055456114,-500.0,8.767e-05,2]
[396572084,1765055456125,-500.0,8.767e-05,2]
[396572086,1765055456135,-572.68,8.767e-05,2]
[396572088,1765055456146,-500.0,8.767e-05,2]
[396572090,1765055456156,-500.0,8.767e-05,2]
[396572092,1765055456166,-690.25,8.767e-05,2]
[396572094,1765055456176,-500.0,8.767e-05,2]
[396572096,1765055456187,-500.0,8.767e-05,2]
[396572098,1765055456196,-500.0,8.767e-05,2]
[396572100,1765055456208,-500.0,8.767e-05,2]
[396572102,1765055456218,-2757.34,8.767e-05,2]
[396572104,1765055456229,-500.0,8.767e-05,2]
[396572106,1765055456238,-500.0,8.767e-05,2]
[396572108,1765055456248,-500.0,8.767e-05,2]
[396572110,1765055456258,-500.0,8.767e-05,2]
[396572112,1765055456269,-1976.96,8.767e-05,2]
[396572114,1765055456282,-500.0,8.767e-05,2]
[396572116,1765055456292,-500.0,8.767e-05,2]
[396572118,1765055456302,-2168.82,8.767e-05,2]
[396572120,1765055456312,-500.0,8.767e-05,2]
[396572122,1765055456322,-574.36,8.767e-05,2]
[396572124,1765055456332,-500.0,8.767e-05,2]
[396572125,1765055456343,-500.0,8.767e-05,2]
[396572127,1765055456353,-500.0,8.767e-05,2]
[396572130,1765055456368,-500.0,8.767e-05,2]
[396572132,1765055456377,-500.0,8.767e-05,2]
[396572134,1765055456388,-758.66,8.767e-05,2]
[396572136,1765055456397,-662.65,8.767e-05,2]
[396572138,1765055456407,-500.0,8.767e-05,2]
[396572140,1765055456416,-500.0,8.767e-05,2]
[396572142,1765055456426,-1785.87,8.767e-05,2]
[396572144,1765055456435,-500.0,8.767e-05,2]
[396572146,1765055456444,-500.0,8.767e-05,2]
[396572148,1765055456455,-500.0,8.767e-05,2]
[396572150,1765055456464,-571.05121542,8.767e-05,2]
[396572152,1765055456474,-591.0,8.767e-05,2]
[396572154,1765055456487,-500.0,8.767e-05,2]
[396572156,1765055456497,-500.0,8.767e-05,2]
[396572158,1765055456507,-1058.33,8.767e-05,2]
[396572160,1765055456516,-500.0,8.767e-05,2]
[396572162,1765055456526,-500.0,8.767e-05,2]
[396572164,1765055456536,-500.0,8.767e-05,2]
[396572166,1765055456545,-500.0,8.767e-05,2]
[396572168,1765055456554,-500.0,8.767e-05,2]
[396572170,1765055456563,-500.0,8.767e-05,2]
[396572172,1765055456573,-1822.34,8.767e-05,2]
[396572174,1765055456583,-563.83,8.767e-05,2]
[396572176,1765055456593,-500.0,8.767e-05,2]
[396572178,1765055456603,-500.0,8.767e-05,2]
[396572180,1765055456612,-500.0,8.767e-05,2]
[396572182,1765055456622,-500.0,8.767e-05,2]
[396572184,1765055456632,-500.0,8.767e-05,2]
[396572186,1765055456643,-500.0,8.767e-05,2]
[396572188,1765055456652,-500.0,8.767e-05,2]
[396572190,1765055456662,-1164.7,8.767e-05,2]
[396572192,1765055456671,-559.65,8.767e-05,2]
[396572194,1765055456680,-500.0,8.767e-05,2]
[396572195,1765055456691,-500.0,8.767e-05,2]
[396572197,1765055456700,-500.0,8.767e-05,2]
[396572199,1765055456709,-500.0,8.767e-05,2]
[396572201,1765055456720,-500.0,8.767e-05,2]
[396572203,1765055456729,-500.0,8.767e-05,2]
[396572205,1765055456738,-500.0,8.767e-05,2]
[396572207,1765055456748,-500.0,8.767e-05,2]
[396572209,1765055456758,-1518.54,8.767e-05,2]
[396572212,1765055456767,-500.0,8.767e-05,2]
[396572213,1765055456779,-500.0,8.767e-05,2]
[396572215,1765055456788,-535.08548964,8.767e-05,2]
[396572217,1765055456798,-500.0,8.767e-05,2]
[396572219,1765055456808,-526.67,8.767e-05,2]
[396572221,1765055456817,-500.0,8.767e-05,2]
[396572223,1765055456827,-500.0,8.767e-05,2]
[396572225,1765055456836,-500.0,8.767e-05,2]
[396572227,1765055456846,-500.0,8.767e-05,2]
[396572229,1765055456856,-500.0,8.767e-05,2]
[396572231,1765055456865,-500.0,8.767e-05,2]
[396572233,1765055456875,-594.8,8.767e-05,2]
[396572235,1765055456884,-500.0,8.767e-05,2]
[396572237,1765055456893,-500.0,8.767e-05,2]
[396572239,1765055456902,-500.0,8.767e-05,2]
[396572240,1765055456912,-500.0,8.767e-05,2]
[396572242,1765055456921,-291.76506415,8.767e-05,2]
[396572244,1765055456931,-510.72268404,8.767e-05,2]
[396572246,1765055456941,-776.49,8.767e-05,2]
[396572248,1765055456950,-608.97,8.767e-05,2]
[396572250,1765055456959,-1214.37,8.767e-05,2]